fUST/lending_fUST_20250121
["ID","MTS","AMOUNT","RATE_DAILY","PERIOD"]
[349824509,1737453041220,-363.604218,0.00024441,2]
[349824511,1737453041229,-305.2110743,0.00024441,2]
[349824513,1737453041238,-340.25604331,0.00024441,2]
[349824515,1737453041248,-183.58099554,0.00024441,2]
[349824517,1737453041258,-151.0,0.00024442,7]
[349824519,1737453041267,-151.0,0.00024442,7]
[349824521,1737453041276,-151.0,0.00024442,7]
[349824523,1737453041285,-151.0,0.00024442,7]
[349824524,1737453041295,-151.0,0.00024442,7]
[349824527,1737453041304,-151.0,0.00024442,7]
[349824528,1737453041314,-6612.08666764,0.00024442,5]
[349828555,1737453826445,214.351241,0.00013973,2]
[349828556,1737454144494,216.67686361,0.000189,2]
[349828598,1737454232776,-214.351241,0.00020447,2]
[349828599,1737454232786,-172.78556904,0.00021077,2]
[349828600,1737454232796,-172.78556903,0.00021136,2]
[349828601,1737454232805,-166.486233,0.00021177,2]
[349828602,1737454232814,-172.78556903,0.00021195,2]
[349828603,1737454232823,-172.78556903,0.00021254,2]
[349828604,1737454232832,-172.78556903,0.00021313,2]
[349828605,1737454232845,-496.4807835,0.00021413,2]
[349828606,1737454232856,-145.5860339,0.00021413,2]
[349828607,1737454232866,-158.55311784,0.000215,2]
[349828608,1737454232875,-319.92,0.000219,2]
[349828609,1737454232884,-1257.0,0.00022024,2]
[349828610,1737454232893,-300.0,0.000221,10]
[349828611,1737454232903,-169.39946869,0.00022356,2]
[349828612,1737454232912,-169.39946869,0.00022575,2]
[349828613,1737454232921,-159.571251,0.00022651,2]
[349828614,1737454232930,-169.39946869,0.00022767,2]
[349828615,1737454232939,-223.73380657,0.00022825,2]
[349828616,1737454232949,-198.50208948,0.00022865,2]
[349828618,1737454232958,-721.56003011,0.000229,3]
[349828626,1737454232967,-300.0,0.00022922,2]
[349828629,1737454233092,-1801.10327137,0.00022922,10]
[349828684,1737454238863,-317.668,0.00022478,2]
[349828686,1737454238873,-15496.44378016,0.00022922,10]
[349828688,1737454238882,-500.0,0.00022923,3]
[349828690,1737454238891,-1305.59,0.00022923,3]
[349828692,1737454238901,-2461.43,0.00022923,3]
[349828694,1737454238910,-500.0,0.00022923,3]
[349828696,1737454238919,-500.0,0.00022923,3]
[349828698,1737454238929,-500.0,0.00022923,3]
[349828700,1737454238938,-500.0,0.00022923,3]
[349828702,1737454238947,-500.0,0.00022923,3]
[349828704,1737454238957,-1049.95,0.00022923,3]
[349828706,1737454238966,-647.78,0.00022923,3]
[349828708,1737454238976,-1398.69,0.00022923,3]
[349828710,1737454238985,-504.97,0.00022923,3]
[349828712,1737454238994,-1277.83,0.00022923,3]
[349828714,1737454239003,-500.0,0.00022923,3]
[349828716,1737454239013,-500.0,0.00022923,3]
[349828718,1737454239022,-500.0,0.00022923,3]
[349828720,1737454239032,-721.46479649,0.00022923,3]
[349828724,1737454239050,-576.27520351,0.00022923,3]
[349828726,1737454239059,-500.0,0.00022923,3]
[349828729,1737454239068,-940.84,0.00022923,3]
[349828731,1737454239078,-588.43,0.00022923,3]
[349828733,1737454239089,-500.0,0.00022923,3]
[349828735,1737454239099,-287.73186441,0.00022923,3]
[349828901,1737454240830,-212.26813559,0.00022923,3]
[349828902,1737454240839,-1166.67,0.00022923,3]
[349828903,1737454240851,-500.0,0.00022923,3]
[349828904,1737454240860,-500.0,0.00022923,3]
[349828905,1737454240869,-2114.39,0.00022923,3]
[349828906,1737454240878,-500.0,0.00022923,3]
[349828908,1737454240887,-500.0,0.00022923,3]
[349828909,1737454240896,-500.0,0.00022923,3]
[349828911,1737454240905,-500.0,0.00022923,3]
[349828913,1737454240915,-590.29,0.00022923,3]
[349828915,1737454240924,-161.69725171,0.00022923,3]
[349828917,1737454240934,-1500.19424657,0.00022925,3]
[349828920,1737454240946,-961.23575343,0.00022925,3]
[349828922,1737454240955,-500.0,0.00022926,3]
[349828923,1737454240965,-500.0,0.00022926,3]
[349828926,1737454240974,-500.0,0.00022926,3]
[349828928,1737454240984,-407.64188818,0.00022926,3]
[349828930,1737454240994,-5316.04,0.00022926,3]
[349828931,1737454241003,-500.0,0.00022926,3]
[349828933,1737454241012,-198.50208948,0.00022934,2]
[349828935,1737454241021,-170.836,0.00022959,2]
[349828937,1737454241030,-169.39946869,0.00022959,2]
[349828939,1737454241039,-1812.01754553,0.00022964,3]
[349828969,1737454241314,-649.41245447,0.00022964,3]
[349828971,1737454241323,-2461.43,0.00022964,3]
[349828973,1737454241332,-6761.94574256,0.00022965,5]
[349828975,1737454241343,-26655.37798446,0.00022965,5]
[349828977,1737454241357,-19863.71440376,0.00022965,5]
[349828979,1737454241367,-24432.19515546,0.00022965,5]
[349828981,1737454241379,-3766.99136579,0.00022965,5]
[349828983,1737454241388,-18563.5275571,0.00022965,5]
[349828986,1737454241399,-10203.55618258,0.00022965,5]
[349828988,1737454241409,-500.0,0.00022965,3]
[349828990,1737454241417,-500.0,0.00022965,3]
[349828991,1737454241426,-500.0,0.00022965,3]
[349828994,1737454241437,-509.57619342,0.00022965,3]
[349828996,1737454241446,-373.74350622,0.00022965,3]
[349828998,1737454241455,-500.0,0.00022965,3]
[349829000,1737454241466,-500.0,0.00022965,3]
[349829001,1737454241476,-500.0,0.00022965,3]
[349829003,1737454241485,-500.0,0.00022965,3]
[349829005,1737454241494,-500.0,0.00022965,3]
[349829007,1737454241503,-500.0,0.00022965,3]
[349829009,1737454241512,-501.2341012,0.00022965,3]
[349829011,1737454241522,-500.0,0.00022965,3]
[349829013,1737454241531,-500.0,0.00022965,3]
[349829015,1737454241541,-500.0,0.00022965,3]
[349829017,1737454241550,-500.0,0.00022965,3]
[349829019,1737454241559,-500.0,0.00022965,3]
[349829021,1737454241570,-500.0,0.00022965,3]
[349829023,1737454241580,-500.0,0.00022965,3]
[349829025,1737454241589,-500.0,0.00022965,3]
[349829027,1737454241599,-500.0,0.00022965,3]
[349829029,1737454241611,-500.0,0.00022965,3]
[349829031,1737454241620,-500.0,0.00022965,3]
[349829033,1737454241630,-517.59396766,0.00022965,3]
[349829035,1737454241639,-500.0,0.00022965,3]
[349829037,1737454241648,-500.0,0.00022965,3]
[349829039,1737454241658,-500.0,0.00022965,3]
[349829041,1737454241667,-500.0,0.00022965,3]
[349829043,1737454241676,-500.0,0.00022965,3]
[349829045,1737454241685,-500.0,0.00022965,3]
[349829047,1737454241694,-500.0,0.00022965,3]
[349829049,1737454241703,-500.0,0.00022965,3]
[349829051,1737454241713,-500.0,0.00022965,3]
[349829053,1737454241722,-505.08942528,0.00022965,3]
[349829055,1737454241732,-500.0,0.00022965,3]
[349829057,1737454241741,-500.0,0.00022965,3]
[349829059,1737454241750,-500.0,0.00022965,3]
[349829061,1737454241759,-500.0,0.00022965,3]
[349829063,1737454241769,-500.0,0.00022965,3]
[349829065,1737454241778,-283.61365713,0.00022965,3]
[349829067,1737454241789,-509.5504308,0.00022965,3]
[349829069,1737454241799,-500.0,0.00022965,3]
[349829071,1737454241810,-500.0,0.00022965,3]
[349829073,1737454241819,-505.30292825,0.00022965,3]
[349829075,1737454241830,-506.75722308,0.00022965,3]
[349829077,1737454241843,-226.18673168,0.00022965,3]
[349829079,1737454241854,-500.0,0.00022965,3]
[349829081,1737454241865,-500.0,0.00022965,3]
[349829083,1737454241875,-500.0,0.00022965,3]
[349829085,1737454241885,-676.62,0.00022965,3]
[349829087,1737454241895,-500.0,0.00022965,3]
[349829089,1737454241904,-501.75522638,0.00022965,3]
[349829091,1737454241914,-500.0,0.00022965,3]
[349829093,1737454241923,-248.62854578,0.00022965,3]
[349829095,1737454241933,-500.0,0.00022965,3]
[349829097,1737454241942,-500.0,0.00022965,3]
[349829099,1737454241952,-500.0,0.00022965,3]
[349829101,1737454241962,-500.0,0.00022965,3]
[349829103,1737454241971,-500.0,0.00022965,3]
[349829105,1737454241981,-500.0,0.00022965,2]
[349829107,1737454241991,-500.0,0.00022965,3]
[349829109,1737454242000,-503.44680135,0.00022965,3]
[349829111,1737454242009,-500.0,0.00022965,3]
[349829113,1737454242019,-500.0,0.00022965,3]
[349829115,1737454242029,-500.0,0.00022965,3]
[349829117,1737454242039,-502.69965709,0.00022965,3]
[349829119,1737454242049,-500.0,0.00022965,3]
[349829121,1737454242060,-500.0,0.00022965,3]
[349829123,1737454242069,-500.0,0.00022965,3]
[349829125,1737454242079,-500.0,0.00022965,3]
[349829127,1737454242093,-500.0,0.00022965,3]
[349829129,1737454242106,-500.0,0.00022965,3]
[349829131,1737454242116,-500.0,0.00022965,3]
[349829133,1737454242125,-500.0,0.00022965,3]
[349829135,1737454242136,-500.0,0.00022965,3]
[349829136,1737454242145,-500.0,0.00022965,3]
[349829138,1737454242155,-503.29889513,0.00022965,3]
[349829141,1737454242166,-500.0,0.00022965,3]
[349829142,1737454242176,-504.64942181,0.00022965,3]
[349829145,1737454242186,-500.0,0.00022965,3]
[349829147,1737454242196,-500.0,0.00022965,3]
[349829148,1737454242206,-500.0,0.00022965,3]
[349829151,1737454242216,-500.0,0.00022965,3]
[349829153,1737454242226,-520.71,0.00022965,3]
[349829155,1737454242235,-500.0,0.00022965,3]
[349829157,1737454242246,-500.0,0.00022965,3]
[349829159,1737454242255,-500.0,0.00022965,3]
[349829171,1737454242265,-500.0,0.00022965,3]
[349829174,1737454242377,-500.0,0.00022965,3]
[349829176,1737454242387,-959.16,0.00022965,3]
[349829178,1737454242396,-500.0,0.00022965,3]
[349829180,1737454242406,-500.0,0.00022965,3]
[349829182,1737454242415,-500.0,0.00022965,3]
[349829184,1737454242424,-846.25,0.00022965,3]
[349829186,1737454242433,-500.0,0.00022965,3]
[349829188,1737454242443,-500.0,0.00022965,3]
[349829190,1737454242452,-192.93908144,0.00022965,3]
[349829192,1737454242461,-500.0,0.00022965,3]
[349829194,1737454242471,-500.0,0.00022965,3]
[349829196,1737454242480,-500.0,0.00022965,3]
[349829198,1737454242490,-500.0,0.00022965,3]
[349829200,1737454242499,-500.0,0.00022965,3]
[349829202,1737454242510,-1532.79,0.00022965,3]
[349829204,1737454242520,-504.51404051,0.00022965,3]
[349829206,1737454242529,-546.93,0.00022965,3]
[349829208,1737454242538,-500.0,0.00022965,3]
[349829210,1737454242550,-500.0,0.00022965,3]
[349829212,1737454242559,-500.0,0.00022965,3]
[349829214,1737454242569,-500.0,0.00022965,3]
[349829216,1737454242579,-500.0,0.00022965,3]
[349829218,1737454242588,-500.0,0.00022965,3]
[349829220,1737454242597,-500.0,0.00022965,3]
[349829222,1737454242607,-500.0,0.00022965,3]
[349829224,1737454242616,-487.83478059,0.00022965,3]
[349829226,1737454242626,-500.0,0.00022965,3]
[349829228,1737454242635,-500.0,0.00022965,3]
[349829230,1737454242645,-500.0,0.00022965,3]
[349829232,1737454242654,-500.0,0.00022965,3]
[349829234,1737454242663,-500.0,0.00022965,3]
[349829236,1737454242672,-501.36169514,0.00022965,3]
[349829238,1737454242682,-500.0,0.00022965,3]
[349829240,1737454242692,-500.0,0.00022965,3]
[349829242,1737454242701,-500.0,0.00022965,3]
[349829244,1737454242710,-446.7719386,0.00022965,3]
[349829246,1737454242719,-500.0,0.00022965,3]
[349829248,1737454242728,-2461.43,0.00022965,3]
[349829250,1737454242739,-2461.43,0.00022965,3]
[349829252,1737454242748,-2461.43,0.00022965,3]
[349829254,1737454242758,-2461.43,0.00022965,3]
[349829256,1737454242767,-500.0,0.00022965,7]
[349829258,1737454242776,-500.0,0.00022965,3]
[349829260,1737454242785,-500.0,0.00022965,3]
[349829262,1737454242794,-500.0,0.00022965,3]
[349829264,1737454242803,-500.0,0.00022965,3]
[349829266,1737454242813,-500.0,0.00022965,3]
[349829268,1737454242822,-500.0,0.00022965,3]
[349829270,1737454242832,-594.20001258,0.00022965,3]
[349829272,1737454242842,-500.0,0.00022965,3]
[349829274,1737454242852,-500.0,0.00022965,3]
[349829276,1737454242861,-500.0,0.00022965,3]
[349829278,1737454242871,-500.0,0.00022965,3]
[349829280,1737454242880,-500.0,0.00022965,3]
[349829282,1737454242889,-500.0,0.00022965,3]
[349829284,1737454242898,-500.0,0.00022965,3]
[349829286,1737454242907,-500.0,0.00022965,3]
[349829288,1737454242916,-8569.64,0.00022965,3]
[349829290,1737454242925,-500.0,0.00022965,3]
[349829292,1737454242934,-500.0,0.00022965,3]
[349829294,1737454242943,-500.0,0.00022965,3]
[349829296,1737454242952,-500.0,0.00022965,3]
[349829298,1737454242961,-500.0,0.00022965,3]
[349829300,1737454242970,-504.62332342,0.00022965,3]
[349829302,1737454242979,-500.0,0.00022965,3]
[349829304,1737454242989,-500.0,0.00022965,3]
[349829306,1737454242998,-500.0,0.00022965,3]
[349829308,1737454243007,-500.0,0.00022965,3]
[349829310,1737454243016,-500.0,0.00022965,3]
[349829312,1737454243025,-503.01616396,0.00022965,3]
[349829314,1737454243034,-500.0,0.00022965,3]
[349829316,1737454243044,-500.0,0.00022965,3]
[349829318,1737454243055,-520.88115174,0.00022965,3]
[349829320,1737454243065,-500.0,0.00022965,2]
[349829322,1737454243074,-500.0,0.00022965,3]
[349829325,1737454243083,-506.70173155,0.00022965,3]
[349829327,1737454243097,-557.74897486,0.00022965,3]
[349829329,1737454243107,-500.0,0.00022965,3]
[349829331,1737454243116,-500.0,0.00022965,3]
[349829333,1737454243126,-500.0,0.00022965,3]
[349829335,1737454243135,-500.0,0.00022965,3]
[349829337,1737454243144,-500.0,0.00022965,3]
[349829339,1737454243153,-500.0,0.00022965,3]
[349829341,1737454243163,-500.0,0.00022965,3]
[349829343,1737454243172,-309.62618393,0.00022965,3]
[349829346,1737454243190,-190.37381607,0.00022965,3]
[349829348,1737454243200,-500.0,0.00022965,3]
[349829350,1737454243209,-500.0,0.00022965,3]
[349829352,1737454243218,-500.0,0.00022965,3]
[349829354,1737454243227,-500.0,0.00022965,3]
[349829356,1737454243236,-538.22,0.00022965,3]
[349829358,1737454243245,-500.0,0.00022965,3]
[349829360,1737454243255,-1034.97,0.00022965,3]
[349829362,1737454243264,-500.0,0.00022965,3]
[349829363,1737454243273,-500.0,0.00022965,3]
[349829364,1737454243282,-500.0,0.00022965,3]
[349829366,1737454243292,-453.59854809,0.00022965,3]
[349829368,1737454243303,-46.40145191,0.00022965,3]
[349829370,1737454243312,-500.0,0.00022965,3]
[349829372,1737454243322,-500.0,0.00022965,3]
[349829376,1737454243331,-500.0,0.00022965,3]
[349829380,1737454243340,-500.0,0.00022965,3]
[349829384,1737454243350,-500.0,0.00022965,3]
[349829388,1737454243359,-505.50855877,0.00022965,3]
[349829392,1737454243368,-500.0,0.00022965,3]
[349829395,1737454243378,-500.0,0.00022965,3]
[349829398,1737454243387,-14200.2,0.00022965,3]
[349829402,1737454243396,-500.0,0.00022965,3]
[349829405,1737454243405,-500.0,0.00022965,3]
[349829408,1737454243415,-500.0,0.00022965,3]
[349829411,1737454243424,-500.0,0.00022965,3]
[349829414,1737454243433,-500.0,0.00022965,3]
[349829417,1737454243442,-500.0,0.00022965,3]
[349829420,1737454243451,-624.3,0.00022965,3]
[349829423,1737454243460,-500.0,0.00022965,3]
[349829426,1737454243470,-2721.66,0.00022965,3]
[349829429,1737454243479,-502.82166386,0.00022966,3]
[349829432,1737454243488,-500.0,0.00022966,3]
[349829435,1737454243497,-500.0,0.00022966,3]
[349829438,1737454243507,-501.84965997,0.00022966,3]
[349829440,1737454243516,-500.0,0.00022966,3]
[349829442,1737454243525,-501.91146282,0.00022966,3]
[349829444,1737454243534,-500.0,0.00022966,3]
[349829446,1737454243544,-534.13234844,0.00022966,3]
[349829448,1737454243553,-677.94,0.00022966,3]
[349829450,1737454243563,-500.0,0.00022966,3]
[349829452,1737454243571,-725.55,0.00022966,3]
[349829454,1737454243581,-501.85260434,0.00022966,3]
[349829456,1737454243590,-500.0,0.00022966,3]
[349829458,1737454243601,-500.0,0.00022966,3]
[349829460,1737454243610,-500.0,0.00022966,3]
[349829462,1737454243620,-500.0,0.00022966,3]
[349829464,1737454243629,-500.0,0.00022966,3]
[349829466,1737454243639,-502.26411502,0.00022966,3]
[349829468,1737454243648,-500.0,0.00022966,3]
[349829470,1737454243658,-500.0,0.00022966,3]
[349829472,1737454243667,-500.0,0.00022966,3]
[349829474,1737454243676,-500.0,0.00022966,3]
[349829476,1737454243685,-500.0,0.00022966,3]
[349829478,1737454243695,-500.0,0.00022966,3]
[349829481,1737454243704,-500.0,0.00022966,3]
[349829482,1737454243713,-2461.43,0.00022966,3]
[349829485,1737454243723,-2461.43,0.00022966,3]
[349829486,1737454243732,-2461.43,0.00022966,3]
[349829489,1737454243741,-2461.43,0.00022966,3]
[349829490,1737454243750,-2461.43,0.00022966,3]
[349829493,1737454243760,-2461.43,0.00022966,3]
[349829495,1737454243768,-2461.43,0.00022966,3]
[349829497,1737454243778,-190.42576225,0.00022967,3]
[349829499,1737454243787,-500.0,0.00022967,3]
[349829501,1737454243796,-500.0,0.00022967,3]
[349829503,1737454243805,-190.63722255,0.00022967,3]
[349829505,1737454243814,-500.0,0.00022967,3]
[349829507,1737454243823,-500.0,0.00022967,3]
[349829509,1737454243832,-500.0,0.00022967,3]
[349829510,1737454243842,-500.0,0.00022967,3]
[349829512,1737454243853,-500.0,0.00022967,3]
[349829514,1737454243862,-511.52070343,0.00022967,3]
[349829517,1737454243871,-500.0,0.00022967,3]
[349829518,1737454243881,-500.0,0.00022967,3]
[349829521,1737454243890,-512.1496569,0.00022967,3]
[349829522,1737454243899,-500.0,0.00022967,3]
[349829524,1737454243908,-500.0,0.00022967,3]
[349829526,1737454243918,-500.0,0.00022967,3]
[349829529,1737454243927,-500.0,0.00022967,3]
[349829530,1737454243936,-500.0,0.00022967,3]
[349829532,1737454243945,-500.0,0.00022967,3]
[349829535,1737454243954,-500.0,0.00022967,3]
[349829537,1737454243963,-500.0,0.00022967,3]
[349829539,1737454243972,-721.56002994,0.00022969,3]
[349829541,1737454243982,-2461.43,0.0002297,3]
[349829543,1737454243992,-1200.0,0.00022971,2]
[349829545,1737454244001,-506.67934786,0.00022973,2]
[349829547,1737454244011,-7438.69753278,0.00023,2]
[349829550,1737454244020,-317.0016975,0.00023,2]
[349829551,1737454244030,-7438.69753278,0.00023,3]
[349829554,1737454244039,-198.50208948,0.00023002,2]
[349829556,1737454244049,-151.0,0.00023037,2]
[349829558,1737454244059,-721.56002994,0.00023038,3]
[349829560,1737454244068,-223.73380656,0.00023044,2]
[349829562,1737454244080,-200.0,0.00023049,2]
[349829564,1737454244094,-200.0,0.00023049,2]
[349829566,1737454244104,-191.67687206,0.00023049,2]
[349829568,1737454244114,-2461.43,0.0002305,3]
[349829570,1737454244123,-2461.43,0.0002305,3]
[349829572,1737454244133,-15.54402528,0.00023051,2]
[349829594,1737454244332,-4984.45597472,0.00023051,2]
[349829596,1737454244341,-5000.0,0.00023051,2]
[349829598,1737454244351,-5000.0,0.00023051,2]
[349829599,1737454244360,-5000.0,0.00023051,2]
[349829601,1737454244370,-5000.0,0.00023051,2]
[349829604,1737454244380,-500.0,0.0002306,3]
[349829606,1737454244390,-1305.59,0.0002306,3]
[349829608,1737454244399,-500.0,0.0002306,3]
[349829610,1737454244409,-500.0,0.0002306,3]
[349829612,1737454244419,-500.0,0.0002306,3]
[349829614,1737454244427,-500.0,0.0002306,3]
[349829616,1737454244437,-500.0,0.0002306,3]
[349829617,1737454244447,-1049.95,0.0002306,3]
[349829619,1737454244456,-647.78,0.0002306,3]
[349829621,1737454244465,-1398.69,0.0002306,3]
[349829623,1737454244475,-504.97,0.0002306,3]
[349829625,1737454244484,-1277.83,0.0002306,3]
[349829627,1737454244493,-500.0,0.0002306,3]
[349829629,1737454244502,-500.0,0.0002306,3]
[349829631,1737454244512,-1297.74,0.0002306,3]
[349829633,1737454244522,-500.0,0.0002306,3]
[349829646,1737454244625,-940.84,0.0002306,3]
[349829648,1737454244635,-588.43,0.0002306,3]
[349829650,1737454244645,-500.0,0.0002306,3]
[349829652,1737454244655,-500.0,0.0002306,3]
[349829654,1737454244665,-1166.67,0.0002306,3]
[349829656,1737454244674,-500.0,0.0002306,3]
[349829658,1737454244683,-500.0,0.0002306,3]
[349829660,1737454244694,-2114.39,0.0002306,3]
[349829662,1737454244704,-500.0,0.0002306,3]
[349829664,1737454244713,-500.0,0.0002306,3]
[349829666,1737454244723,-500.0,0.0002306,3]
[349829669,1737454244733,-590.29,0.0002306,3]
[349829671,1737454244743,-2461.43,0.00023062,3]
[349829673,1737454244753,-500.0,0.00023063,3]
[349829675,1737454244762,-5316.04,0.00023063,3]
[349829677,1737454244772,-500.0,0.00023063,3]
[349829679,1737454244781,-2461.43,0.000231,3]
[349829681,1737454244791,-2461.43,0.000231,3]
[349829683,1737454244801,-2461.43,0.000231,3]
[349829685,1737454244810,-2461.43,0.000231,3]
[349829687,1737454244819,-2461.47439689,0.000231,3]
[349829689,1737454244829,-500.0,0.00023102,3]
[349829691,1737454244837,-500.0,0.00023102,3]
[349829693,1737454244847,-500.0,0.00023102,3]
[349829695,1737454244858,-500.0,0.00023102,3]
[349829697,1737454244867,-500.0,0.00023102,3]
[349829699,1737454244877,-500.0,0.00023102,3]
[349829701,1737454244887,-500.0,0.00023102,3]
[349829703,1737454244897,-500.0,0.00023102,3]
[349829705,1737454244907,-500.0,0.00023102,3]
[349829707,1737454244917,-500.0,0.00023102,3]
[349829709,1737454244927,-500.0,0.00023102,3]
[349829711,1737454244936,-500.0,0.00023102,3]
[349829713,1737454244946,-500.0,0.00023102,3]
[349829715,1737454244955,-500.0,0.00023102,3]
[349829717,1737454244965,-500.0,0.00023102,3]
[349829719,1737454244974,-500.0,0.00023102,3]
[349829721,1737454244984,-500.0,0.00023102,3]
[349829723,1737454244993,-500.0,0.00023102,3]
[349829725,1737454245002,-500.0,0.00023102,3]
[349829727,1737454245012,-500.0,0.00023102,3]
[349829729,1737454245021,-500.0,0.00023102,3]
[349829731,1737454245031,-500.0,0.00023102,3]
[349829733,1737454245040,-500.0,0.00023102,3]
[349829735,1737454245050,-500.0,0.00023102,3]
[349829737,1737454245058,-500.0,0.00023102,3]
[349829739,1737454245068,-676.62,0.00023102,3]
[349829741,1737454245078,-500.0,0.00023102,3]
[349829743,1737454245089,-520.30885521,0.00023102,3]
[349829745,1737454245098,-500.0,0.00023102,3]
[349829747,1737454245108,-209.90915442,0.00023102,2]
[349829757,1737454245200,-290.09084558,0.00023102,2]
[349829759,1737454245210,-500.0,0.00023102,3]
[349829761,1737454245220,-500.0,0.00023102,3]
[349829763,1737454245229,-393.75057281,0.00023102,3]
[349831533,1737454838695,207.853177,0.00013973,2]
[349831540,1737455164009,586.07091567,0.0002,2]
[349831547,1737455391054,1298.05,0.0002,10]
[349831582,1737455432146,-207.853177,0.00020447,2]
[349831583,1737455432156,-52.37882895,0.00021555,2]
[349831625,1737455437884,-1788.4865662,0.00021555,2]
[349831627,1737455437894,-287.93,0.000219,2]
[349831629,1737455437907,-1268.01096243,0.0002221,2]
[349831653,1737455438119,-10891.82509878,0.0002221,2]
[349831655,1737455438129,-1233.84,0.00022483,3]
[349831657,1737455438140,-500.0,0.00022483,3]
[349831659,1737455438149,-539.4,0.00022483,3]
[349831661,1737455438158,-500.0,0.00022483,3]
[349831663,1737455438167,-500.0,0.00022483,3]
[349831665,1737455438177,-500.0,0.00022512,3]
[349831667,1737455438186,-603.6,0.00022512,3]
[349831669,1737455438196,-1259.29,0.00022575,3]
[349831672,1737455438205,-500.0,0.00022575,3]
[349831674,1737455438215,-1024.96,0.00022575,3]
[349831676,1737455438224,-658.46,0.00022575,3]
[349831678,1737455438233,-500.0,0.00022575,3]
[349831680,1737455438244,-500.0,0.00022575,3]
[349831682,1737455438260,-924.93,0.00022575,3]
[349831684,1737455438269,-500.0,0.00022575,3]
[349831686,1737455438278,-1119.98,0.00022575,3]
[349831688,1737455438287,-1468.89302967,0.00022575,3]
[349831690,1737455438299,-531.79697033,0.00022575,3]
[349831692,1737455438308,-342.16492539,0.00022575,3]
[349831694,1737455438318,-500.0,0.00022575,3]
[349831696,1737455438327,-520.14,0.00022575,3]
[349831698,1737455438336,-1110.89810214,0.0002262,3]
[349831700,1737455438348,-122.94189786,0.0002262,3]
[349831702,1737455438358,-192.35940683,0.0002262,3]
[349831874,1737455440169,-307.64059317,0.0002262,3]
[349831876,1737455440178,-539.4,0.0002262,3]
[349831878,1737455440188,-500.0,0.0002262,3]
[349831880,1737455440198,-500.0,0.0002262,3]
[349831883,1737455440207,-500.0,0.00022649,3]
[349831885,1737455440217,-603.6,0.00022649,3]
[349831887,1737455440227,-12159.83606121,0.00022711,2]
[349831889,1737455440236,-1259.29,0.00022712,3]
[349831891,1737455440247,-1024.96,0.00022712,3]
[349831892,1737455440258,-658.46,0.00022712,3]
[349831895,1737455440268,-500.0,0.00022712,3]
[349831896,1737455440277,-500.0,0.00022712,3]
[349831898,1737455440287,-924.93,0.00022712,3]
[349831901,1737455440297,-500.0,0.00022712,3]
[349831903,1737455440306,-1119.98,0.00022712,3]
[349831905,1737455440316,-2000.69,0.00022712,3]
[349831907,1737455440326,-520.14,0.00022712,3]
[349831909,1737455440336,-500.0,0.00022723,3]
[349831911,1737455440345,-500.0,0.00022723,3]
[349831913,1737455440355,-500.0,0.00022723,3]
[349831915,1737455440365,-1403.8,0.00022723,3]
[349831917,1737455440375,-1254.17,0.00022723,3]
[349831919,1737455440384,-500.0,0.00022723,3]
[349831921,1737455440395,-500.0,0.00022723,3]
[349831923,1737455440404,-500.0,0.00022723,3]